bitfinex/quotes_ETHUSD_20241003
["timestamp","ask_amount","ask_price","bid_price","bid_amount"]
[1727957650344,4.25261,2351.5,2351.1,4.25332]
[1727957650587,4.25261,2351.5,2351.1,8.50652]
[1727957650983,4.25261,2351.5,2351.1,4.2532]
[1727957651196,4.25279,2351.4,2351.0,4.25347]
[1727957651536,4.25261,2351.5,2351.1,4.2533]
[1727957651741,8.50535,2351.5,2351.1,4.2533]
[1727957651942,4.25261,2351.5,2351.1,4.2533]
[1727957652137,1.6326466,2351.6,2350.9,4.25365]
[1727957652343,4.25292,2351.4,2350.9,8.50726]
[1727957652581,4.25292,2351.4,2351.0,4.25347]
[1727957653079,5.8852166,2351.6,2351.0,4.25347]
[1727957653376,4.25267,2351.5,2351.1,4.25331]
[1727957653889,4.25301,2351.3,2350.8,4.25376]
[1727957654179,4.25324,2351.2,2350.8,4.25376]
[1727957654581,4.25324,2351.2,2350.8,8.50754]
[1727957654783,4.25324,2351.2,2350.8,9.439344]
[1727957655482,4.25299,2351.3,2350.9,4.25368]
[1727957655985,4.25324,2351.2,2350.7,0.8105]
[1727957656185,4.25324,2351.2,2350.7,4.25395]
[1727957656186,10.22921366,2351.2,2350.7,4.25395]
[1727957656355,10.1723866,2351.2,2350.7,4.25395]
[1727957657285,0.7839,2351.2,2350.9,4.25355]
[1727957657514,5.1348966,2351.4,2351.0,4.25343]
[1727957657670,4.25296,2351.3,2350.9,4.25355]
[1727957658009,9.3878366,2351.4,2350.9,8.50709]
[1727957658712,5.1348866,2351.4,2351.0,4.2535]
[1727957658873,5.1348866,2351.4,2350.9,4.25366]
[1727957659080,5.1348866,2351.4,2351.0,4.2534]
[1727957659296,0.8819466,2351.4,2351.1,4.2533]
[1727957659497,5.1348666,2351.4,2351.0,5.0228]
[1727957660108,5.1348666,2351.4,2351.0,9.27623]
[1727957660109,4.25292,2351.4,2351.0,9.27623]
[1727957660573,4.25292,2351.4,2351.0,5.0228]
[1727957661211,9.3878166,2351.4,2351.0,5.0228]
[1727957661417,5.1348666,2351.4,2351.0,5.0228]
[1727957661917,8.50588,2351.4,2351.0,5.0228]
[1727957662211,5.1348666,2351.4,2351.0,5.0229]
[1727957662421,5.1348566,2351.4,2351.0,5.0229]
[1727957663083,0.8819466,2351.5,2351.3,4.25296]
[1727957663284,1.32291991,2351.6,2351.5,4.2526]
[1727957663285,0.8819466,2351.6,2351.5,4.2526]
[1727957663481,0.8819466,2351.9,2351.6,4.25226]
[1727957663690,0.8819466,2351.9,2351.7,4.25216]
[1727957663873,0.8819466,2352.0,2351.7,4.25216]
[1727957664097,5.1337666,2352.0,2351.6,4.25237]
[1727957664301,0.8819466,2352.2,2351.9,0.8069]
[1727957664507,5.1331866,2352.3,2351.9,0.8069]
[1727957664710,5.1333066,2352.2,2351.9,0.8069]
[1727957664873,4.25136,2352.2,2351.9,0.8069]
[1727957665073,5.1331066,2352.3,2351.9,5.05878]
[1727957665276,4.25116,2352.3,2351.9,9.31066]
[1727957665494,4.25116,2352.3,2351.9,5.05878]
[1727957665708,4.25116,2352.3,2351.9,5.564658]
[1727957666099,4.25116,2352.3,2351.9,1.312778]
[1727957666100,8.50249,2352.3,2351.9,1.312778]
[1727957666301,8.50249,2352.3,2351.9,0.8069]
[1727957666302,4.25116,2352.3,2351.9,0.8069]
[1727957666502,5.9224366,2352.4,2351.9,5.0586]
[1727957666719,4.25118,2352.3,2351.9,5.0586]
[1727957666925,4.25118,2352.3,2351.9,5.989664]
[1727957667430,5.04049,2352.4,2352.0,4.25168]
[1727957667575,5.04049,2352.4,2351.9,5.989664]
[1727957667782,9.29162,2352.4,2351.9,5.989664]
[1727957667982,5.1327566,2352.5,2352.1,4.2515]
[1727957668211,4.25081,2352.5,2352.0,4.2516]
[1727957668413,4.25112,2352.4,2352.0,4.2516]
[1727957668681,4.25112,2352.4,2352.0,8.50319]
[1727957668823,4.25112,2352.4,2352.0,4.25159]
[1727957669141,4.25112,2352.4,2352.0,5.2757054]
[1727957669322,4.25112,2352.4,2352.0,4.25159]
[1727957669629,4.25112,2352.4,2352.0,8.5032]
[1727957669834,4.25112,2352.4,2352.0,4.25159]
[1727957670190,4.25112,2352.4,2352.0,8.5032]
[1727957670392,4.25112,2352.4,2352.0,9.43422]
[1727957670937,0.8819466,2352.6,2352.4,4.25097]
[1727957671087,1.32291991,2352.7,2352.3,4.25102]
[1727957671088,5.1323766,2352.7,2352.3,4.25102]
[1727957671295,4.25043,2352.7,2352.3,4.25102]
[1727957671532,4.25043,2352.7,2352.3,8.50207]
[1727957671690,4.25043,2352.7,2352.3,4.25102]
[1727957672025,5.07387,2352.8,2352.3,4.25102]
[1727957672244,5.07387,2352.8,2352.4,4.25096]
[1727957672826,4.25027,2352.8,2352.4,5.03746]
[1727957674116,4.25054,2352.7,2352.4,0.7865]
[1727957674322,4.25072,2352.6,2352.1,5.03787]
[1727957675035,4.25091,2352.5,2352.1,5.03787]
[1727957675239,4.25118,2352.3,2351.9,4.2518]
[1727957675542,4.25187,2352.0,2351.5,0.8214]
[1727957675695,4.25204,2351.9,2351.5,5.07398]
[1727957675895,4.25187,2352.0,2351.6,4.2524]
[1727957676817,4.25144,2352.2,2351.8,4.25203]
[1727957677022,4.25144,2352.2,2351.8,5.102441]
[1727957677223,4.25144,2352.2,2351.8,4.25203]
[1727957677420,8.50286,2352.2,2351.8,4.25203]
[1727957678024,4.25146,2352.2,2351.5,0.8214]
[1727957678197,4.25178,2352.0,2351.6,4.25239]
[1727957679308,4.25159,2352.1,2351.6,4.25239]
[1727957679510,4.25159,2352.1,2351.6,8.50471]
[1727957679841,4.25159,2352.1,2351.6,9.437321]
[1727957680339,8.50323,2352.1,2351.6,5.184931]
[1727957680920,4.25178,2352.0,2351.6,5.184931]
[1727957681434,4.25178,2352.0,2351.6,9.437271]
[1727957681598,4.25178,2352.0,2351.6,5.184931]
[1727957681995,4.25188,2351.9,2351.6,0.932611]
[1727957682339,4.25178,2352.0,2351.6,0.932611]
[1727957682340,4.25178,2352.0,2351.6,4.25239]
[1727957682642,5.1333966,2352.2,2351.7,4.2522]
[1727957682841,4.25145,2352.2,2351.7,4.2522]
[1727957683067,5.8862366,2352.3,2351.8,4.25203]
[1727957683338,4.25134,2352.2,2351.8,4.68573682]
[1727957684042,4.25134,2352.2,2351.8,8.93768682]
[1727957684215,5.00434,2352.3,2351.8,4.68565682]
[1727957684539,4.25163,2352.1,2351.6,4.2523]
[1727957684725,4.25178,2352.0,2351.5,0.8214]
[1727957684930,4.25198,2351.9,2351.5,5.07396]
[1727957685235,4.25195,2351.9,2351.5,5.07389]
[1727957685739,4.25178,2352.0,2351.6,4.25235]
[1727957686125,4.25155,2352.1,2351.7,4.25214]
[1727957686439,4.2517,2352.0,2351.6,9.437272]
[1727957687027,0.8819466,2352.2,2351.6,5.184922]
[1727957687231,4.25155,2352.1,2351.7,4.25224]
[1727957690671,4.2516,2352.1,2351.5,5.07397]
[1727957690976,4.25196,2351.9,2351.5,5.07397]
[1727957691272,4.25187,2352.0,2351.5,5.07397]
[1727957691273,4.25187,2352.0,2351.6,4.25227]
[1727957692151,0.8819466,2352.2,2351.7,4.25216]
[1727957692359,5.1333166,2352.2,2351.8,4.25197]
[1727957692668,4.25137,2352.2,2351.8,4.25197]
[1727957693026,4.25196,2351.9,2351.5,5.0739]
[1727957694567,0.8819466,2352.2,2351.5,0.8214]
[1727957694732,5.8862866,2352.3,2351.9,4.25188]
[1727957695150,4.25134,2352.2,2351.8,4.25192]
[1727957695966,4.25152,2352.1,2351.8,4.25192]
[1727957696276,4.25152,2352.1,2351.7,4.25219]
[1727957696473,4.25152,2352.1,2351.7,5.184781]
[1727957696657,4.25134,2352.2,2351.8,4.25203]
[1727957696972,4.25134,2352.2,2351.7,5.184781]
[1727957696973,4.25152,2352.1,2351.7,0.932591]
[1727957697268,4.25152,2352.1,2351.7,5.184781]
[1727957697771,4.25152,2352.1,2351.7,9.436921]
[1727957698070,4.25152,2352.1,2351.7,5.184731]
[1727957698475,8.5032,2352.1,2351.7,5.184731]
[1727957698726,4.25152,2352.1,2351.7,5.184731]
[1727957699482,8.50313,2352.1,2351.7,5.184731]
[1727957699660,8.50313,2352.1,2351.7,4.25214]
[1727957699661,4.25152,2352.1,2351.7,4.25214]
[1727957700062,4.25152,2352.1,2351.5,5.07383]
[1727957700268,4.25152,2352.1,2350.7,5.24853919]
[1727957700269,4.25252,2351.6,2351.2,4.25307]
[1727957700471,4.25218,2351.8,2351.4,4.25274]
[1727957700651,0.8819466,2352.0,2351.7,4.25212]
[1727957700848,0.8819466,2352.0,2351.4,0.8061]
[1727957700849,0.8819466,2352.0,2351.9,4.25188]
[1727957701053,0.8819466,2352.2,2351.9,8.928858]
[1727957701354,0.8819466,2352.2,2351.9,0.425188]
[1727957701355,4.25134,2352.2,2351.9,0.425188]
[1727957701591,5.1331666,2352.3,2351.6,4.2524]
[1727957701791,0.8819466,2352.2,2351.9,4.25183]
[1727957702097,2.58529321,2352.4,2351.4,4.07306423]
[1727957702098,0.8819466,2352.4,2352.2,4.25119]
[1727957702266,1.32291991,2352.6,2352.0,0.51021096]
[1727957702267,0.8819466,2352.5,2352.4,4.25097]
[1727957702675,0.8819466,2352.7,2352.4,4.25097]
[1727957703177,0.8819466,2352.8,2352.5,4.25067]
[1727957703486,5.1322166,2352.8,2352.4,0.929242]
[1727957703711,4.25043,2352.7,2352.3,5.04129]
[1727957704274,0.8819466,2352.8,2352.4,4.25095]
[1727957704476,5.1322766,2352.8,2352.4,4.25095]
[1727957704770,0.8819466,2352.7,2352.3,5.04129]
[1727957704975,2.02866725,2352.7,2352.0,0.808]
[1727957705175,2.02866725,2352.7,2351.7,0.808]
[1727957705176,4.25193,2351.9,2351.7,0.808]
[1727957705404,4.25193,2351.9,2351.5,5.06057]
[1727957705587,8.50393,2351.9,2351.5,1.233253]
[1727957705768,4.25214,2351.8,2351.4,4.25276]
[1727957705971,4.25224,2351.7,2351.3,5.00778]
[1727957706259,4.25207,2351.8,2351.4,4.25268]
[1727957706573,0.8819466,2351.8,2351.5,4.25258]
[1727957706773,0.8819466,2351.8,2351.5,8.50502]
[1727957707005,0.8819466,2351.8,2351.5,9.431022]
[1727957707206,0.8819466,2351.8,2351.6,4.2524]
[1727957707411,1.32291991,2351.9,2351.5,5.178442]
[1727957707412,0.8819466,2351.9,2351.8,0.7955]
[1727957707595,0.8819466,2351.9,2351.5,4.25249]
[1727957707596,4.25188,2351.9,2351.5,4.25249]
[1727957707776,4.25186,2352.0,2351.5,4.8901693]
[1727957708099,4.25186,2352.0,2351.5,0.6376793]
[1727957708100,0.8819466,2351.9,2351.5,0.6376793]
[1727957708423,4.25252,2351.6,2351.2,4.25309]
[1727957708571,5.1343566,2351.7,2351.3,4.25295]
[1727957708768,5.1342866,2351.7,2351.3,4.25295]
[1727957708967,4.25249,2351.6,2351.1,0.7605]
[1727957709274,4.25249,2351.6,2351.1,5.01381]
[1727957709275,0.8819466,2351.6,2351.1,5.01381]
[1727957709495,0.8819466,2351.6,2351.2,4.25307]
[1727957709695,4.2526,2351.5,2351.1,5.60626614]
[1727957709873,5.1344566,2351.6,2351.1,5.60616614]
[1727957710325,5.1344566,2351.6,2351.1,9.85939614]
[1727957710492,5.1344566,2351.6,2351.1,5.60616614]
[1727957710693,4.2526,2351.5,2351.1,5.60616614]
[1727957710889,4.25315,2351.2,2350.8,5.57504]
[1727957711123,4.07306423,2351.3,2350.6,4.25414]
[1727957711322,4.25416,2350.7,2350.2,0.8047]
[1727957711722,4.25416,2350.7,2350.1,4.25509]
[1727957711723,4.25454,2350.5,2350.1,4.25509]
[1727957712031,4.25425,2350.6,2350.1,4.81416409]
[1727957712206,8.50857,2350.6,2350.1,4.81416409]
[1727957712409,4.25425,2350.6,2350.2,4.25485]
[1727957712598,4.25425,2350.6,2350.2,5.25073126]
[1727957712794,5.1359366,2350.8,2350.2,5.25073126]
[1727957713112,0.8819466,2350.8,2350.6,4.25423]
[1727957713307,5.1355566,2351.0,2350.6,4.761753]
[1727957713647,0.8819466,2351.0,2350.9,4.25369]
[1727957713797,0.8819466,2351.4,2350.9,4.25369]
[1727957713991,0.8819466,2351.4,2351.0,5.08302]
[1727957714342,0.8819466,2351.4,2350.9,0.425369]
[1727957714343,0.8819466,2351.3,2350.9,0.425369]
[1727957714635,0.7935,2351.2,2350.4,0.8296]
[1727957714855,0.7935,2350.8,2350.2,0.798]
[1727957714996,8.50872,2350.6,2350.2,0.798]
[1727957715191,4.25433,2350.6,2350.1,4.25505]
[1727957715396,4.25433,2350.6,2350.0,5.05315]
[1727957715397,4.2546,2350.4,2350.0,5.05315]
[1727957715698,4.25444,2350.5,2350.0,9.30835]
[1727957715899,4.25463,2350.4,2350.0,5.05315]
[1727957716128,4.25463,2350.4,2350.0,4.25515]
[1727957717039,4.25444,2350.5,2350.1,4.25511]
[1727957717248,5.03478,2350.9,2350.3,4.25474]
[1727957717399,4.25397,2350.8,2350.3,4.25474]
[1727957717945,5.03478,2350.9,2350.4,4.25449]
[1727957718160,0.8819466,2351.0,2350.6,4.2542]
[1727957718161,4.25358,2351.0,2350.6,4.2542]
[1727957718454,4.25397,2350.8,2350.3,8.50931]
[1727957718797,4.25397,2350.8,2350.2,0.8245]
[1727957719009,4.25431,2350.6,2350.0,1.686123]
[1727957719209,4.25472,2350.4,2349.8,4.25558]
[1727957719443,4.25469,2350.4,2349.9,5.106632]
[1727957719642,4.25477,2350.3,2349.9,5.106632]
[1727957720444,4.25469,2350.4,2349.9,5.106632]
[1727957720646,4.25469,2350.4,2349.5,4.25619]
[1727957720647,0.8198,2350.7,2350.3,4.25475]
[1727957720947,5.07394,2350.7,2350.3,4.25475]
[1727957721348,4.25404,2350.8,2350.3,4.2547]
[1727957721551,5.1352966,2351.1,2350.6,4.25421]
[1727957721843,4.25335,2351.1,2350.6,1.69155694]
[1727957721998,4.25335,2351.1,2350.7,4.25403]
[1727957722200,4.25335,2351.1,2350.6,1.69155694]
[1727957722201,4.25335,2351.1,2350.6,10.19974694]
[1727957722435,4.25335,2351.1,2350.6,5.94561694]
[1727957722646,8.50677,2351.1,2350.6,5.94561694]
[1727957723798,4.25335,2351.1,2350.7,4.25397]
[1727957724146,0.7516,2351.2,2350.7,9.10247169]
[1727957724147,4.25322,2351.2,2350.7,9.10247169]
[1727957724355,4.25322,2351.2,2350.8,4.25384]
[1727957725485,4.25322,2351.2,2350.7,4.84853169]
[1727957725654,4.25322,2351.2,2350.8,4.25379]
[1727957725842,4.253,2351.3,2350.8,4.25379]
[1727957726170,4.25318,2351.2,2350.8,4.25379]
[1727957726567,0.8049,2351.4,2350.6,0.8322]
[1727957726568,0.8049,2351.4,2350.9,4.25367]
[1727957726772,8.2719466,2351.5,2351.1,0.7987]
[1727957726773,11.64271,2351.5,2351.1,0.7987]
[1727957726953,4.2528,2351.4,2351.1,0.7987]
[1727957727155,4.25305,2351.3,2350.7,5.05264]
[1727957727363,4.25333,2351.1,2350.7,5.05259]
[1727957728087,9.27568,2351.2,2350.7,5.05259]
[1727957728389,5.02227,2351.2,2350.8,4.25385]
[1727957728685,5.02227,2351.2,2350.7,5.05259]
[1727957728686,9.27552,2351.2,2350.7,5.05259]
[1727957728885,4.25339,2351.1,2350.7,5.05259]
[1727957729677,5.949822,2351.2,2350.7,9.30651]
[1727957729874,5.949822,2351.2,2350.8,4.25386]
[1727957730080,0.7551,2351.5,2350.9,4.25356]
[1727957730294,4.25281,2351.4,2350.9,4.25356]
[1727957730463,8.50568,2351.4,2350.9,4.25356]
[1727957730663,4.25316,2351.2,2350.8,4.25386]
[1727957730995,4.25316,2351.2,2350.7,0.7987]
[1727957730996,4.25316,2351.2,2350.7,4.25401]
[1727957731490,4.25334,2351.1,2350.7,4.25401]
[1727957731841,4.25305,2351.3,2350.8,4.25374]
[1727957732291,8.50584,2351.4,2350.9,4.25357]
[1727957732546,9.83383966,2351.4,2350.9,4.25357]
[1727957733456,4.25299,2351.3,2350.9,4.25357]
[1727957734267,4.25299,2351.3,2350.7,4.25398]
[1727957734569,4.25358,2351.0,2350.6,4.25421]
[1727957734754,0.7979,2351.0,2350.7,4.25405]
[1727957735213,5.05149,2351.0,2350.6,4.25419]
[1727957735694,0.7979,2351.0,2350.6,8.50829]
[1727957735990,0.7979,2351.0,2350.6,4.2541]
[1727957736318,5.05143,2351.0,2350.6,8.50826]
[1727957736496,5.05143,2351.0,2350.6,4.2541]
[1727957737153,4.25387,2350.8,2350.4,4.2545]
[1727957737355,4.25387,2350.8,2350.2,4.25495]
[1727957737568,4.25387,2350.8,2350.3,4.25477]
[1727957737569,4.25408,2350.7,2350.3,4.25477]
[1727957737903,4.8095613,2350.8,2350.2,4.25495]
[1727957737904,4.25394,2350.8,2350.4,4.25446]
[1727957738101,4.25394,2350.8,2350.4,8.50898]
[1727957738306,4.25394,2350.8,2350.4,4.25446]
[1727957738307,5.184498,2350.8,2350.4,4.25446]
[1727957738895,5.184498,2350.8,2350.4,8.50894]
[1727957739205,5.184498,2350.8,2350.4,4.25446]
[1727957740281,9.30506,2351.0,2350.5,4.25428]
[1727957740468,9.0704466,2351.2,2350.7,4.25387]
[1727957740666,0.7985,2351.2,2350.7,4.2539]
[1727957740898,0.7985,2351.2,2350.8,4.25369]
[1727957741079,5.05131,2351.4,2350.9,4.25361]
[1727957741279,5.05131,2351.4,2351.0,4.25343]
[1727957741797,0.7985,2351.4,2350.9,4.25366]
[1727957741996,5.05131,2351.4,2351.0,4.25349]
[1727957742199,5.05131,2351.4,2350.9,4.25366]
[1727957742200,4.25305,2351.3,2350.9,4.25364]
[1727957742574,4.25305,2351.3,2350.9,8.5072]
[1727957742775,2.55607766,2351.4,2350.9,4.25356]
[1727957742970,5.1345866,2351.5,2351.1,4.25325]
[1727957743208,9.48631991,2351.6,2351.0,0.8276]
[1727957743209,4.25286,2351.4,2351.0,0.8276]
[1727957743387,4.25303,2351.3,2350.9,4.25361]
[1727957744920,5.0627,2351.2,2350.8,4.25379]
[1727957745310,4.25346,2351.1,2350.7,4.25398]
[1727957745470,5.185076,2351.1,2350.7,4.25401]
[1727957746872,5.185076,2351.1,2350.8,4.25385]
[1727957747079,0.931616,2351.1,2350.8,4.25385]
[1727957747412,0.8095,2351.2,2350.5,5.04848]
[1727957747621,0.8095,2351.2,2350.5,5.04833]
[1727957747622,5.78944965,2351.2,2350.5,5.04833]
[1727957747832,4.25333,2351.1,2350.7,4.254]
[1727957748114,5.06271,2351.2,2350.8,4.25386]
[1727957748115,5.06268,2351.2,2350.8,4.25386]
[1727957748876,5.06268,2351.2,2350.8,8.50762]
[1727957749118,6.21473065,2351.2,2350.8,4.25376]
[1727957750016,0.8819466,2351.3,2350.7,4.25397]
[1727957750221,0.8819466,2351.3,2351.1,4.25329]
[1727957751278,0.8819466,2351.3,2351.1,8.50652]
[1727957751484,0.8819466,2351.3,2351.1,4.25323]
[1727957751685,0.8819466,2351.3,2351.0,4.25346]
[1727957752205,0.8819466,2351.3,2351.1,4.25329]
[1727957752414,0.8819466,2351.3,2350.9,5.03997]
[1727957752720,0.8819466,2351.3,2351.0,4.25347]
[1727957752918,0.8819466,2351.3,2351.1,4.25329]
[1727957753132,0.8819466,2351.3,2351.2,4.25314]
[1727957753426,0.8819466,2351.3,2351.2,5.71490373]
[1727957753917,2.0,2351.9,2351.7,4.25216]
[1727957755828,2.0,2351.9,2351.8,4.25206]
[1727957756128,2.0,2351.9,2351.8,6.56071651]
[1727957760826,2.0,2351.9,2351.8,9.56071651]
[1727957760999,2.0,2351.9,2351.8,9.47568569]
[1727957761395,2.0,2351.9,2351.8,6.47568569]
[1727957761602,2.0,2351.9,2351.8,5.92568569]
[1727957762810,2.0,2351.9,2351.8,6.47568569]
[1727957765609,2.0,2351.9,2351.8,6.5607153]
[1727957767728,2.0,2351.9,2351.8,6.47568569]
[1727957769552,2.0,2351.9,2351.8,10.54526624]
[1727957769855,2.0,2351.9,2351.8,13.54526624]
[1727957770229,0.7523,2353.2,2353.1,4.24971]
[1727957770554,0.7523,2353.2,2353.0,4.24981]
[1727957770755,0.7523,2353.2,2352.9,4.24996]
[1727957770966,5.00186,2353.2,2352.8,4.25025]
[1727957771655,0.7523,2353.2,2352.9,4.25004]
[1727957772824,0.7523,2353.2,2352.8,4.25022]
[1727957773031,5.00185,2353.2,2352.8,4.25022]
[1727957773229,0.7523,2353.2,2352.9,4.25005]
[1727957773916,5.04926,2353.5,2353.1,4.24969]
[1727957774143,0.8002,2353.5,2353.1,4.24969]
[1727957774635,0.8002,2353.5,2353.2,4.24952]
[1727957774815,0.8002,2353.5,2353.1,4.24969]
[1727957775157,0.8002,2353.5,2353.1,4.24959]
[1727957775482,7.39,2353.9,2353.1,4.24959]
[1727957775483,0.7673,2353.7,2353.4,4.24917]
[1727957775625,4.24857,2353.8,2353.3,4.24924]
[1727957775626,4.24856,2353.8,2353.3,4.24924]
[1727957775822,5.01565,2353.9,2353.3,4.24924]
[1727957776041,4.24856,2353.8,2353.3,8.49849]
[1727957776234,4.24856,2353.8,2353.3,4.24924]
[1727957776638,0.7673,2353.9,2353.2,5.08629435]
[1727957776827,0.7673,2353.9,2353.6,4.24873]
[1727957777066,0.794,2354.2,2353.9,8.49644]
[1727957777262,4.24825,2354.0,2353.5,4.24887]
[1727957777577,5.04185,2354.2,2353.6,4.24871]
[1727957777751,4.24808,2354.0,2353.6,4.24871]
[1727957778133,4.24808,2354.0,2353.5,4.24887]
[1727957778134,8.49629,2354.0,2353.5,4.24887]
[1727957778450,4.2481,2354.0,2353.5,4.24882]
[1727957778635,4.24793,2354.1,2353.6,4.33367299]
[1727957778834,4.24793,2354.1,2353.7,4.24852]
[1727957780240,4.8025415,2354.1,2353.7,4.24852]
[1727957781041,0.5546115,2354.1,2353.8,4.24834]
[1727957781335,0.794,2354.2,2353.9,4.24825]
[1727957781539,0.794,2354.2,2353.8,4.24834]
[1727957782035,0.794,2354.2,2353.8,8.49669]
[1727957782239,0.794,2354.2,2353.9,4.24818]
[1727957782477,0.8211,2354.4,2354.1,4.2478]
[1727957782651,0.8211,2354.4,2354.2,4.2476]
[1727957782855,7.39,2354.5,2354.2,4.2476]
[1727957783187,11.63719,2354.5,2354.1,4.2478]
[1727957783337,5.06824,2354.6,2354.1,4.24778]
[1727957783687,4.24676,2354.8,2354.2,4.24772]
[1727957783883,5.07675,2354.8,2354.3,4.24745]
[1727957784233,5.07675,2354.8,2354.4,4.24722]
[1727957784664,5.07674,2354.8,2354.4,4.24722]
[1727957784880,0.8275,2355.0,2354.4,0.506122]
[1727957785069,4.24665,2354.8,2354.4,8.49463]
[1727957785279,5.07379,2355.0,2354.4,8.49463]
[1727957785280,4.24649,2354.9,2354.4,4.24719]
[1727957785492,4.24649,2354.9,2354.5,4.24717]
[1727957785853,4.24664,2354.8,2354.4,4.24719]
[1727957786065,4.24649,2354.9,2354.4,4.24719]
[1727957786298,4.24649,2354.9,2354.4,8.49448]
[1727957786459,8.49309,2354.9,2354.4,4.24719]
[1727957787064,4.24649,2354.9,2354.4,8.49447]
[1727957787262,4.24649,2354.9,2354.4,9.43381098]
[1727957787481,4.24649,2354.9,2354.4,5.18653098]
[1727957787678,0.8275,2355.0,2354.6,4.24699]
[1727957788195,0.8275,2355.0,2354.6,4.2469]
[1727957788400,0.9499,2355.0,2354.7,4.2468]
[1727957788756,5.19628,2355.0,2354.4,5.18658098]
[1727957788956,5.19628,2355.0,2354.3,4.2475]
[1727957788957,0.9499,2355.0,2354.3,4.2475]
[1727957789205,4.24677,2354.8,2354.4,4.24731]
[1727957789556,4.24649,2354.9,2354.5,4.24718]
[1727957790282,0.1224,2355.0,2354.5,0.08493887]
[1727957790489,0.1224,2355.0,2354.9,4.24646]
[1727957790757,0.1224,2355.0,2354.8,4.24664]
[1727957791067,0.1224,2355.0,2354.8,4.753994]
[1727957791275,0.1224,2355.0,2354.9,4.79646]
[1727957791599,0.1224,2355.0,2354.9,4.8813769]
[1727957792259,0.1224,2355.0,2354.9,4.79646]
[1727957792818,0.1224,2355.0,2354.9,5.62336]
[1727957793002,0.1224,2355.0,2354.9,6.6610954]
[1727957793875,0.1224,2355.0,2354.9,9.74600622]
[1727957794217,0.1224,2355.0,2354.9,9.6610954]
[1727957795689,4.24289,2356.9,2356.4,4.24376]
[1727957796018,1.18747343,2357.2,2356.4,5.30300875]
[1727957796019,0.7696,2357.2,2356.4,5.30300875]
[1727957796179,5.01192,2357.2,2356.4,5.30300875]
[1727957796533,5.01192,2357.2,2356.4,0.424376]
[1727957796534,4.24286,2356.9,2356.4,0.424376]
[1727957796818,4.24304,2356.8,2356.4,0.424376]
[1727957796979,4.24286,2356.9,2356.4,4.668136]
[1727957797618,0.7678,2356.7,2356.4,0.424376]
[1727957797922,0.7678,2356.7,2356.3,4.24383]
[1727957799078,0.7678,2356.7,2356.4,4.24376]
[1727957800096,0.8304,2357.2,2356.4,4.79376]
[1727957800307,5.07281,2357.2,2356.4,4.79376]
[1727957800501,4.24278,2357.0,2356.3,4.24383]
[1727957800743,0.7827,2356.6,2356.4,4.24376]
[1727957801030,5.02548,2357.0,2356.4,4.24376]
[1727957801191,5.02548,2357.0,2356.4,5.092519]
[1727957801542,4.24286,2356.9,2356.4,5.092519]
[1727957801703,5.02547,2357.0,2356.4,5.17738827]
[1727957801890,0.7827,2357.0,2356.4,5.72738827]
[1727957802404,5.02538,2357.0,2356.4,5.72738827]
[1727957802614,4.24286,2356.9,2356.4,0.848759]
[1727957802810,4.24317,2356.8,2356.3,4.24383]
[1727957803208,0.8724817,2356.5,2356.1,4.24421]
[1727957803612,0.8724817,2356.5,2356.1,4.24418]
[1727957803813,0.8724817,2356.5,2356.2,0.424418]
[1727957804015,0.8724817,2356.5,2356.0,4.24446]
[1727957804236,4.24378,2356.4,2355.9,4.24457]
[1727957804536,0.8724817,2356.5,2355.8,0.7618]
[1727957804537,5.1161517,2356.5,2356.0,4.24434]
[1727957805232,4.24378,2356.4,2356.0,4.24434]
[1727957806027,4.24412,2356.2,2355.8,4.24469]
[1727957806190,5.17977317,2356.4,2355.7,4.24489]
[1727957806394,4.24378,2356.4,2355.9,4.24454]
[1727957807131,4.2442,2356.2,2355.7,4.245]
[1727957807340,0.7759,2356.1,2355.7,4.245]
[1727957807634,0.7759,2356.1,2355.6,4.24506]
[1727957807635,5.0203,2356.1,2355.6,4.24506]
[1727957807835,5.0203,2356.1,2355.7,4.24494]
[1727957808001,5.0203,2356.1,2355.6,4.24506]
[1727957808648,5.0203,2356.1,2355.7,4.24497]
[1727957809140,5.0203,2356.1,2355.6,4.24506]
[1727957809450,4.24473,2355.9,2355.5,4.24537]
[1727957809736,1.27793,2356.1,2355.3,4.24563]
[1727957809737,0.7552,2355.7,2355.3,4.24563]
[1727957810998,5.00026,2355.7,2355.1,4.24593]
[1727957811202,4.24532,2355.6,2355.1,4.24593]
[1727957811423,4.24532,2355.6,2355.2,4.24591]
[1727957812147,4.24538,2355.5,2355.1,4.24607]
[1727957812494,4.24538,2355.5,2354.9,5.2840354]
[1727957812702,4.24538,2355.5,2355.0,4.82538894]
[1727957812904,4.24538,2355.5,2355.1,4.2461]
[1727957813105,4.24532,2355.6,2355.2,4.24581]
[1727957813326,8.49066,2355.6,2355.1,4.24609]
[1727957813552,4.24541,2355.5,2355.1,4.24609]
[1727957814301,5.02024,2355.4,2355.0,0.57913894]
[1727957814507,11.63432,2356.1,2354.5,4.24706]
[1727957814508,0.7746,2355.1,2354.5,4.24706]
[1727957814703,4.2464,2355.0,2354.5,4.24705]
[1727957814930,5.02083,2355.1,2354.6,4.2469]
[1727957815363,0.7746,2355.1,2354.5,4.747025]
[1727957815664,5.02072,2355.1,2354.7,4.24682]
[1727957816923,9.26694,2355.1,2354.7,4.24682]
[1727957817154,9.26694,2355.1,2354.6,0.4747025]
[1727957817722,5.02072,2355.1,2354.6,4.7215425]
[1727957817918,5.02072,2355.1,2354.7,5.15214966]
[1727957817919,0.7746,2355.1,2354.7,5.15214966]
[1727957818165,0.8287,2355.5,2354.8,0.87502681]
[1727957818326,0.8287,2355.5,2355.2,4.24577]